Cogmind - Beta 17 @@@ ROGUE MODE // 2026.06.23 @ 17:03:37 Player: Petvaria Result: Destroyed by Y-64 Sentinel with Wave Gun Performance ------------- Evolutions (6) 3000 Regions Visited (15) 3000 Robots Destroyed (282) 1410 Value Destroyed (15764) 15764 Prototype IDs (30) 600 Alien Tech Used (0) 0 Bonus (15384) 15384 TOTAL SCORE: 39158 Bonus ------- Triggered High Security 1000 High Alert Combat Kills 8168 Follower Combat Kills 2488 Entered Garrisons 600 Used RIF Installer 2500 Entered DSFs 500 Aligned with FarCom 300 Friendly Fire -172 Cogmind --------- Core Integrity 0/1150 Matter 200/300 Energy 84/100 System Corruption 27% Temperature Cool (9) Movement Core (50) Location -4/Extension Parts ------- > --- POWER (2) -------- (None) > --- PROPULSION (5) --- (None) > --- UTILITY (8) ------ (None) > --- WEAPON (4) ------- (None) > --- INVENTORY (5) ---- Advanced VSS Leg Advanced Transmission Jammer Graphene Brace Long-range Proton Cannon Improved Plasma Cutter Peak State ------------ > --- POWER ------------ Hybrid Fission Core Light Antimatter Reactor > --- PROPULSION ------- Armored Medium Treads Armored Heavy Treads Advanced Heavy Treads > --- UTILITY ---------- Experimental Heat Sink High-capacity Storage Unit Experimental Optical Array Advanced Target Analyzer Core Analyzer Launcher Loader Improved Medium Armor Plating > --- WEAPON ----------- Hypervelocity Mass Driver Hypervelocity Mass Driver Hypervelocity Mass Driver Fusion Bomb Launcher > --- INVENTORY -------- Light Antimatter Reactor Light Antimatter Reactor Improved VSS Leg Improved VSS Leg Advanced Heat Sink Matter Compressor Improved Weapon Cycler Improved Medium Armor Plating Improved Medium Armor Plating Graphene Brace Advanced Remote Force Field Relay Coupler [NC] Relay Coupler [Grunt] High-powered Tractor Beam Wave Gun Hypervelocity Mass Driver Linear Accelerator Improved Remote Datajack Improved Plasma Cutter Longsword +1 [Rating: 131] Favorites ----------- Power Light Particle Reactor Engine Light Ion Engine Power Core Hybrid Fission Core Reactor Light Particle Reactor Propulsion Potential Leg Treads Advanced Heavy Treads Leg Potential Leg Wheel Wheel Flight Unit Field Propulsion Array Utility High-capacity Storage Unit Device Advanced Heat Sink Storage High-capacity Storage Unit Processor Core Analyzer Hackware Relay Coupler [NC] Protection Improved Light Armor Plating Weapon Hypervelocity Mass Driver Energy Gun Small Laser Energy Cannon Phase Cannon Ballistic Gun Flak Gun Ballistic Cannon Hypervelocity Mass Driver Launcher Mini Grenade Launcher Special Weapon Improved Remote Datajack Slashing Weapon Longsword +1 Build | -11 -10 -10 -10 -9 -8 -7 -7 -6 -6 -6 -6 -5 -5 -4 -4 ------- Run | Yrd Mat Min Exi Min Mat Fac DSF Fac Gar Fac Gar Fac Gar Fac Ext Slots Evolved 12 | . . . . . 4 2 . 2 . . . 2 . 2 . Power 1 | . . . . . . . . . . . . 1 . . . Propulsion 3 | . . . . . 1 1 . 1 . . . . . . . Utility 6 | . . . . . 2 1 . 1 . . . 1 . 1 . Weapon 2 | . . . . . 1 . . . . . . . . 1 . Parts Attached 149 | 7 . 11 3 3 28 3 10 11 25 4 19 3 6 14 2 Power 22 | 1 . 2 . . 4 1 2 1 5 1 1 1 2 1 . Engine 12 | 1 . 2 . . 2 1 1 1 3 . . . 1 . . Core 5 | . . . . . 2 . 1 . 1 . . 1 . . . Reactor 5 | . . . . . . . . . 1 1 1 . 1 1 . Propulsion 35 | 2 . 3 2 . 5 1 3 4 5 . 3 . 1 5 1 Treads 13 | 2 . . . . 2 . . 1 2 . 3 . 1 2 . Leg 19 | . . 1 2 . 3 1 3 3 3 . . . . 2 1 Wheel 2 | . . 2 . . . . . . . . . . . . . Hover . | . . . . . . . . . . . . . . . . Flight 1 | . . . . . . . . . . . . . . 1 . Utility 52 | 2 . 2 1 3 11 1 3 4 9 1 7 1 1 6 . Device 19 | 1 . . . 1 3 . 1 3 5 1 3 . . 1 . Storage 6 | 1 . 1 1 . 2 . . . . . . . . 1 . Processor 4 | . . . . . . . 1 1 1 . 1 . . . . Hackware 4 | . . . . . . . . . . . 2 . . 2 . Protection 19 | . . 1 . 2 6 1 1 . 3 . 1 1 1 2 . Artifact . | . . . . . . . . . . . . . . . . Weapon 40 | 2 . 4 . . 8 . 2 2 6 2 8 1 2 2 1 Energy Gun 7 | 1 . 1 . . 1 . . . 1 . 2 1 . . . Energy Cannon 3 | . . . . . 1 . . . 1 . . . . 1 . Ballistic Gun 13 | 1 . 1 . . 5 . 2 1 2 1 . . . . . Ballistic Cannon 9 | . . . . . . . . 1 2 1 4 . . . 1 Launcher 3 | . . 2 . . . . . . . . . . 1 . . Special Weapon 4 | . . . . . . . . . . . 2 . 1 1 . Impact Weapon . | . . . . . . . . . . . . . . . . Slashing Weapon 1 | . . . . . 1 . . . . . . . . . . Piercing Weapon . | . . . . . . . . . . . . . . . . Special Melee Weapon . | . . . . . . . . . . . . . . . . Unidentified Prototypes 7 | . . . . 1 1 . . 1 . 2 2 . . . . Parts Lost 55 | . . 6 . . 9 . 2 . 7 . 5 . 3 22 1 Power 11 | . . 2 . . 2 . 1 . 1 . 1 . 1 3 . Propulsion 16 | . . 2 . . 2 . . . 2 . 1 . 1 7 1 Utility 16 | . . 1 . . 3 . . . 3 . 2 . 1 6 . Weapon 12 | . . 1 . . 2 . 1 . 1 . 1 . . 6 . Highest Loss Streak 18 | . . 5 . . 5 . 2 . 2 . 2 . 1 18 1 To Critical Strikes 1 | . . . . . . . . . . . . . . 1 . Average Backups 15 | 2 5 6 9 13 14 16 17 18 19 18 17 17 17 15 5 Power . | . 1 . . . . . . . 1 2 1 . 1 1 . Propulsion 2 | 1 3 1 1 2 5 6 6 6 3 1 1 1 . 1 . Utility 7 | . . 1 4 5 6 7 7 8 10 10 8 8 9 7 2 Weapon 3 | . 1 2 4 6 2 3 3 3 3 4 5 6 4 3 2 Tool/Special . | . . . . . . . . . . . . . . . . Unused Backups 32 | . . . . . 3 2 3 6 6 1 4 . 1 3 3 Power 3 | . . . . . . . 1 1 . . . . . 1 . Propulsion 6 | . . . . . . . 2 2 1 . 1 . . . . Utility 18 | . . . . . 2 2 . 3 4 . 2 . 1 2 2 Weapon 5 | . . . . . 1 . . . 1 1 1 . . . 1 Tool/Special . | . . . . . . . . . . . . . . . . Average Slot Usage (%) 86 | . 100 97 99 99 87 90 89 92 90 83 84 80 85 70 9 Engine 2 | . 14 13 14 14 . 2 2 3 2 . . . . . . Core 2 | . . . . . 8 4 2 2 1 . . 3 4 3 . Reactor 2 | . . . . . . . . . 1 6 5 5 5 4 . Treads 10 | . 28 8 . . 5 . . 5 6 20 19 17 16 11 . Leg 11 | . . 8 15 28 20 30 30 26 22 . . . . 1 . Wheel 1 | . . 11 12 . . . . . . . . . . . . Device 9 | . 14 5 . 5 9 15 10 13 12 13 11 5 9 9 . Storage 7 | . 14 14 14 14 9 7 7 6 6 6 6 5 5 3 4 Processor 8 | . . . . . . . 4 6 8 13 17 17 17 11 . Protection 6 | . . 7 14 8 12 6 7 6 6 6 2 4 4 2 . Energy Gun 2 | . 14 8 14 14 2 . . . 3 . . . . . . Energy Cannon 2 | . . . . . 5 . . . 4 6 2 . . . . Ballistic Gun 7 | . 14 6 14 14 12 22 23 16 8 . 2 . . . . Ballistic Cannon 5 | . . . . . . . . 2 1 8 12 16 16 11 . Launcher 1 | . . 12 . . . . . . . . . . . 2 . Peak Build Rating 131 | 7 7 12 31 37 63 57 64 77 98 101 112 124 125 131 25 Average Rating 73 | 5 7 9 12 33 52 56 58 73 82 96 101 121 118 95 17 On Entrance 56 | . 7 7 10 31 32 48 57 64 77 98 94 112 123 119 24 Avg Prop Armor Cover (%) 6 | . . 7 7 . 5 3 2 4 5 . . 4 . 7 . Naked Turns 113 | . . . . . . . . . . . . . . 78 35 Heaviest Build 127 | 12 12 18 28 39 66 82 82 89 98 98 93 118 122 127 19 Greatest Support 172 | 40 40 40 60 60 66 84 90 90 165 165 172 172 162 157 15 Greatest Overweight (x) 2 | . . 1 2 . . . 1 1 1 . . . 1 2 1 Average Overweight (x) . | . . . 1 . . . . . . . . . . . . Largest Inventory Capacity 20 | 8 8 10 15 15 20 20 20 20 20 20 20 20 20 20 10 Average Capacity 17 | 7 8 8 13 15 16 20 20 20 20 20 20 20 20 16 9 Most Carried 20 | 6 6 9 13 15 20 20 20 20 20 20 20 20 20 20 7 Average Carried 16 | 2 5 6 9 14 15 19 19 19 19 19 19 19 19 15 6 Final Capacity 20 | 8 8 10 15 15 20 20 20 20 20 20 20 20 20 10 5 Final Carried 20 | 5 6 9 13 15 20 20 20 20 20 20 20 20 20 5 5 Class Distribution -------------------- 27% | Scavenger-Gunner 19% | Mutant 19% | Tank 13% | Gunner 11% | Scavenger-Tank 4% | Skirmisher 3% | Scavenger-Mutant Dominant Class ---------------- Mutant | -10/Materials Mutant | -10/Mines Mutant | -10/Exiles Mutant | -9/Mines Tank | -8/Materials Scavenger-Tank | -7/Factory Scavenger-Gunner | -7/DSF Scavenger-Gunner | -6/Factory Scavenger-Gunner | -6/Garrison Tank | -6/Factory Gunner | -6/Garrison Tank | -5/Factory Scavenger-Gunner | -5/Garrison Scavenger-Gunner | -4/Factory Mutant | -4/Extension Resources | -11 -10 -10 -10 -9 -8 -7 -7 -6 -6 -6 -6 -5 -5 -4 -4 ----------- Run | Yrd Mat Min Exi Min Mat Fac DSF Fac Gar Fac Gar Fac Gar Fac Ext Matter Collected 8357 | 291 12 283 . 58 874 60 522 396 1193 234 795 437 1681 1382 139 Remotely 1628 | . . . . . . . . . 281 . . . 463 884 . Salvage Created 10673 | 98 88 145 . . 2748 153 488 431 1436 207 833 441 1705 1900 . Parts 482 | 9 5 3 . . 122 5 21 15 58 12 38 25 115 54 . Haulers Intercepted 3 | . . . . . 3 . . . . . . . . . . Recyclers Shooed 9 | . . . . . 5 1 . 3 . . . . . . . Parts Field Recycled . | . . . . . . . . . . . . . . . . Retrieved Matter . | . . . . . . . . . . . . . . . . Parts Self-Destructed . | . . . . . . . . . . . . . . . . Prevented . | . . . . . . . . . . . . . . . . Parts Restored . | . . . . . . . . . . . . . . . . Kills | -11 -10 -10 -10 -9 -8 -7 -7 -6 -6 -6 -6 -5 -5 -4 -4 ------- Run | Yrd Mat Min Exi Min Mat Fac DSF Fac Gar Fac Gar Fac Gar Fac Ext Combat Hostiles Destroyed 249 | . 2 17 . . 51 . 10 8 34 4 19 8 40 56 . Melee 2 | . . . . . . . . . . . . . . 2 . Guns 63 | . 2 9 . . 14 . 10 5 20 . 2 1 . . . Cannons 92 | . . . . . 11 . . 1 14 4 16 7 32 7 . AOE 85 | . . 8 . . 20 . . 2 . . . . 8 47 . Classes Destroyed 24 | 2 1 2 . . 13 . 1 . 1 . 2 . 2 . . Worker 12 | . . . . . 10 . . . . . . 2 . . . Builder 4 | . . . . . 3 . . . . . . 1 . . . Tunneler 2 | 2 . . . . . . . . . . . . . . . Hauler 3 | . . . . . 3 . . . . . . . . . . Recycler 9 | 1 . . . . 5 2 . . . 1 . . . . . Carrier 2 | . . . . . 2 . . . . . . . . . . Mechanic 7 | . . . . . 2 . . 1 . . . . . 4 . Operator 2 | . . . . . 1 . . . . . 1 . . . . Watcher 3 | . . . . . 1 . . 1 . . . 1 . . . Swarmer 28 | . . 6 . . 3 . 3 . 7 3 2 . 4 . . Cutter 6 | . . . . . . . . . . . . . 6 . . Saboteur 6 | . . . . . . . . . . . 1 . 3 2 . Grunt 119 | . 2 . . . 32 . 5 5 20 . 11 6 13 25 . Brawler 6 | . . . . . 2 . . 1 1 . . . . 2 . Duelist 5 | . . . . . 3 . . 1 . . . . . 1 . Protector 7 | . . . . . 2 . . . . . . . . 5 . Sentry 18 | . . . . . 4 . . 1 5 1 2 . 5 . . Demolisher 1 | . . . . . . . . . . . . . 1 . . Specialist 5 | . . . . . . . 1 . . . 1 . . 3 . Hunter 14 | . . . . . 4 . . . . . 1 1 4 4 . Programmer 18 | . . . . . . . . . . . 1 . 4 13 . Heavy 2 | . . . . . 1 . 1 . . . . . . . . Behemoth 2 | . . . . . . . . . 1 . . 1 . . . Assembled 11 | . . 11 . . . . . . . . . . . . . Infiltrator 1 | . . . . . . . . . . . . . . 1 . Best Kill Streak 21 | 3 1 3 . . 15 2 4 8 8 2 6 6 6 21 . Combat Bots Only 19 | . 1 3 . . 11 . 4 7 8 2 6 4 6 19 . Max Kills in Single Turn 7 | 1 1 2 . . 7 1 1 2 2 1 2 3 4 4 . Gunslinging . | . . . . . . . . . . . . . . . . Exploded 4 | . . 2 . . 3 . . 2 . . . . 2 4 . Melee 1 | . . . . . . . . . . . . . . 1 . Uniques/NPCs Destroyed . | . . . . . . . . . . . . . . . . Combat | -11 -10 -10 -10 -9 -8 -7 -7 -6 -6 -6 -6 -5 -5 -4 -4 -------- Run | Yrd Mat Min Exi Min Mat Fac DSF Fac Gar Fac Gar Fac Gar Fac Ext Hostile Shots Fired 1374 | . 13 87 . . 167 . 88 67 338 22 111 37 137 254 53 Missed 443 | . 3 20 . . 59 . 27 18 114 8 36 11 41 85 21 Hits 931 | . 10 67 . . 108 . 61 49 224 14 75 26 96 169 32 Melee 26 | . . 4 . . 3 . . 3 . . 2 . 11 3 . Projectile 905 | . 10 63 . . 105 . 61 46 224 14 73 26 85 166 32 AOE 4 | . . . . . . . . . . . . 2 2 . . Critical Strikes 37 | . . . . . 5 . 7 . 4 1 2 1 5 11 1 Part Disruptions 4 | . . . . . . . . 1 . . 1 1 1 . . Damage Taken 16650 | . 141 904 . . 2070 . 1292 941 3037 180 1197 690 1841 3531 826 Core 2086 | . 50 187 . . 241 . 70 20 228 9 20 . 104 539 618 Absorbed by Shields 289 | . . . . . . . . . 20 56 136 . 29 . 48 Regen/Repaired (Parts) 695 | . . . . . 213 37 . . . . . . . 445 . Core Remaining (%) 62 | 100 . . . 5 22 . 90 . . . 67 . 89 . . Volleys Fired 587 | 7 10 42 . . 131 3 38 17 117 13 52 18 61 76 2 Largest 4 | 2 2 2 . . 3 3 3 3 3 3 3 3 3 4 1 Hottest 230 | 60 60 80 . . 126 74 79 89 193 195 168 230 168 224 81 Shots Fired 1188 | 14 20 81 . . 210 9 114 51 242 25 123 50 157 90 2 Gun 575 | 14 20 70 . . 142 9 114 36 127 . 33 10 . . . Cannon 526 | . . . . . 68 . . 15 115 25 89 40 147 25 2 Launcher 71 | . . 11 . . . . . . . . . . 5 55 . Special 16 | . . . . . . . . . . . 1 . 5 10 . Kinetic 802 | 7 10 29 . . 114 9 114 51 158 18 81 40 147 24 . Thermal 296 | 7 10 41 . . 96 . . . 84 7 41 10 . . . Explosive 71 | . . 11 . . . . . . . . . . 5 55 . Electromagnetic 3 | . . . . . . . . . . . . . . 1 2 Robot Hit Streak 27 | 1 6 6 . . 9 5 8 10 27 3 11 15 12 7 . Robot Miss Streak 10 | 8 3 5 . . 5 1 6 7 10 6 10 2 6 5 3 Penetration Max 2 | . . . . . 1 . 1 . . . . 2 1 . . Secondary Targets 5 | . . 2 . . 2 . 1 . . . . . . . . Max Gunslinging Chain 1 | . . 1 . . 1 . 1 . . . . . . . . Shots Hit Robots 665 | 3 12 37 . . 115 6 80 40 143 9 72 34 82 32 . Core Hits 679 | 3 5 26 . . 88 2 41 62 127 5 66 24 53 177 . Critical Kills 59 | . . . . . 8 . 1 . . 1 3 9 32 5 . Critical Parts Destroyed 64 | . . . . . . . . . 6 1 3 16 33 5 . Critical Strikes 138 | . . . . . 8 . 1 2 11 3 10 26 67 10 . Meltdown 8 | . . . . . 7 . . . . . 1 . . . . Destroy 120 | . . . . . 1 . 1 . 9 2 5 25 67 10 . Blast 10 | . . . . . . . . 2 2 1 4 1 . . . Melee Attacks 13 | . . . . . 2 . . . . . 2 . 3 6 . Impact . | . . . . . . . . . . . . . . . . Slashing 13 | . . . . . 2 . . . . . 2 . 3 6 . Piercing . | . . . . . . . . . . . . . . . . Sneak Attacks . | . . . . . . . . . . . . . . . . Combat Hostiles . | . . . . . . . . . . . . . . . . Follow-up Attacks . | . . . . . . . . . . . . . . . . Damage Inflicted 34975 | 70 151 839 . . 9480 93 1421 1286 3612 351 2172 1040 2514 11946 . Guns 6915 | 70 148 411 . . 1317 93 1421 697 1989 . 508 261 . . . Cannons 10310 | . . . . . 3757 . . 318 1623 330 1654 621 1700 307 . Explosions 17580 | . . 428 . . 4406 . . 271 . . . 157 814 11504 . Melee 135 | . . . . . . . . . . . . . . 135 . Ramming 35 | . 3 . . . . . . . . 21 10 1 . . . Kinetic 10638 | 59 69 181 . . 1023 93 1421 1015 2314 206 1629 621 1700 307 . Thermal 10993 | 11 79 230 . . 8457 . . . 1298 124 533 261 . . . Explosive 12746 | . . 428 . . . . . . . . . . 814 11504 . Electromagnetic 428 | . . . . . . . . 271 . . . 157 . . . Impact . | . . . . . . . . . . . . . . . . Slashing 135 | . . . . . . . . . . . . . . 135 . Piercing . | . . . . . . . . . . . . . . . . Highest Corruption 27 | . . . . . 3 . . . 1 2 3 1 3 21 27 Average Corruption 3 | . . . . . 3 . . . 1 1 2 1 2 15 21 Corruption Purged . | . . . . . . . . . . . . . . . . Corruption Blocked . | . . . . . . . . . . . . . . . . Effects 120 | . . . . . 23 . . . 7 4 31 . 23 18 14 Message Errors 32 | . . . . . 8 . . . 1 1 11 . 5 2 4 Matter Fused 21 | . . . . . 4 . . . 2 . 5 . 5 2 3 Heat Flow Errors 9 | . . . . . 2 . . . . 1 3 . 2 . 1 Energy Discharges 23 | . . . . . 4 . . . . 1 8 . 2 5 3 Parts Rejected 5 | . . . . . 1 . . . . . 1 . 1 2 . Parts Fused 4 | . . . . . 1 . . . 1 . . . . 1 1 Data Loss (minor) 9 | . . . . . 2 . . . 1 . 2 . 3 . 1 Data Loss (major) 5 | . . . . . . . . . 1 1 . . 1 1 1 Misfires 3 | . . . . . . . . . . . 1 . 2 . . Alerts 2 | . . . . . 1 . . . . . . . . 1 . Misdirections 2 | . . . . . . . . . . . . . . 2 . Weapon Failures 5 | . . . . . . . . . 1 . . . 2 2 . Overload Shots . | . . . . . . . . . . . . . . . . Overflow Damage 1518 | . . 15 . . 786 . . 28 . 8 98 . 15 568 . Projectiles 679 | . . . . . 545 . . 28 . 8 98 . . . . Explosions 839 | . . 15 . . 241 . . . . . . . 15 568 . Melee . | . . . . . . . . . . . . . . . . Knockbacks 31 | . . . . . . . . 4 5 1 4 4 10 3 . Impact . | . . . . . . . . . . . . . . . . Kinetic 31 | . . . . . . . . 4 5 1 4 4 10 3 . Secondary . | . . . . . . . . . . . . . . . . Self-Inflicted Damage 543 | . . 86 . . 320 . . 86 . . . 45 . 6 . Shots 13 | . . 3 . . 4 . . 2 . . . 3 . 1 . Rammed 4 | . 1 . . . . . . . . 2 1 . . . . Targets Rammed 5 | . 1 . . . . . . . . 2 1 1 . . . Kicked . | . . . . . . . . . . . . . . . . Crushed 1 | . . . . . . . . . . . . 1 . . . Highest Temperature 546 | . 36 90 . . 366 . 6 15 546 120 199 321 401 317 103 Average Temperature 93 | . 20 31 . . 113 . 6 9 108 46 59 117 110 104 47 Received Heat Transfer 3404 | . 75 84 . . 387 . 297 345 1253 . 179 120 219 349 96 Effects 15 | . . . . . 7 . . . 1 . . . 4 3 . Shutdowns 4 | . . . . . 1 . . . 1 . . . 2 . . Energy Bleed 1 | . . . . . 1 . . . . . . . . . . Interference 6 | . . . . . 3 . . . . . . . . 3 . Matter Decay 1 | . . . . . 1 . . . . . . . . . . Damage (minor) 1 | . . . . . 1 . . . . . . . . . . Damage (major) 2 | . . . . . . . . . . . . . 2 . . Siege Activations . | . . . . . . . . . . . . . . . . Martial Activations . | . . . . . . . . . . . . . . . . Shielding Activations . | . . . . . . . . . . . . . . . . Robots Disrupted 1 | . . . . . . . . 1 . . . . . . . Combat Hostiles 1 | . . . . . . . . 1 . . . . . . . Robots Corrupted 1 | . . . . . . . . . . . 1 . . . . Combat Hostiles . | . . . . . . . . . . . . . . . . Parts Fried 1 | . . . . . . . . . . . 1 . . . . Impact Corruptions 1 | . . . . . . . . . . . 1 . . . . Robots Melted 8 | . . . . . 7 . . . . . 1 . . . . Combat Hostiles 7 | . . . . . 6 . . . . . 1 . . . . Parts Melted 18 | . . . . . 11 . . . 3 . 2 . . 2 . Heat Transferred 12314 | 25 175 525 . . 8331 . . . 2205 148 572 333 . . . Parts Sabotaged 6 | . . . . . . . . . . . 3 . . 3 . Parts Stolen . | . . . . . . . . . . . . . . . . Parts Stripped . | . . . . . . . . . . . . . . . . Power Chain Reactions . | . . . . . . . . . . . . . . . . Alert | -11 -10 -10 -10 -9 -8 -7 -7 -6 -6 -6 -6 -5 -5 -4 -4 ------- Run | Yrd Mat Min Exi Min Mat Fac DSF Fac Gar Fac Gar Fac Gar Fac Ext Maximum Alert Level 5 | . . . . . 4 3 2 1 5 3 5 4 5 5 5 Low Security (%) 14 | 100 100 100 . 100 13 . . 23 . . . . . . . Level 1 5 | . . . . . . . . 76 7 . . . . . . Level 2 8 | . . . . . 7 81 100 . 10 . 1 . . . . Level 3 14 | . . . . . 26 18 . . 17 100 17 . 13 . . Level 4 23 | . . . . . 51 . . . 45 . 6 100 17 8 . Level 5 26 | . . . . . . . . . 19 . 75 . 69 . 72 High Security 6 | . . . . . . . . . . . . . . 91 27 Max Security . | . . . . . . . . . . . . . . . . Sterilizations 2 | . . . . . 1 . 1 . . . . . . . . Peak Influence 4731 | 5 49 88 . . 1595 722 631 363 1858 995 2238 1281 2449 4731 2332 Initial 2317 | . . 10 . . . 722 406 331 242 975 672 1174 877 1285 2317 Average 1276 | . 20 16 . . 1003 647 467 247 1241 960 1775 1199 1697 3307 2292 Influence Increases 12597 | 15 69 206 . . 2252 18 245 294 1766 116 1616 357 1602 3826 215 Destroy 0b10 Robot/C 5900 | . 40 120 . . 1020 . 200 160 820 80 720 200 900 1560 80 Destroy 0b10 Robot/NC 270 | 15 . . . . 135 10 5 10 . 5 5 25 . 60 . Destroy Leader 702 | . 10 20 . . 228 . 10 32 30 20 50 42 70 180 10 Allied During Kill 1734 | . . . . . . . . . 52 . 306 20 234 1082 40 Successful Hack 159 | . 4 . . . 48 7 . 27 21 . 14 . . 24 14 Disable Machine 570 | . . . . . 135 . . 60 . . 60 60 . 210 45 Anti-Garrison Action 1650 | . . . . . 150 . . . 650 . 400 . 300 150 . Destroy Structure 1177 | . . 66 . . 506 1 . 5 118 11 61 10 83 290 26 Partial Spotted 15 | . . . . . . . . . 15 . . . . . . Lose Combat Pursuer 420 | . 15 . . . 30 . 30 . 60 . . . 15 270 . Influence Decreases 10315 | 15 40 189 46 . 663 1027 194 578 255 1013 339 1342 406 1544 2664 Entered New Map 7701 | . . 19 46 . . 867 174 300 105 883 289 1064 376 1164 2414 Time Decay 1727 | 15 40 163 . . 573 160 . 278 . 130 . 238 . 30 100 Lost Part 497 | . . 7 . . 90 . 20 . 70 . 50 . 30 220 10 Lost Ally 390 | . . . . . . . . . 80 . . 40 . 130 140 Squads Dispatched 53 | . . . . . 15 1 . 4 . 2 . 2 . 27 2 Investigation 6 | . . . . . 2 . . 1 . . . 1 . 1 1 Extermination 2 | . . . . . . 1 . 1 . . . . . . . Reinforcement 9 | . . . . . 5 . . 1 . 2 . . . . 1 Assault 32 | . . . . . 5 . . . . . . 1 . 26 . Garrison 4 | . . . . . 3 . . 1 . . . . . . . Intercept . | . . . . . . . . . . . . . . . . Searches Triggered . | . . . . . . . . . . . . . . . . Construction Impeded 3 | . . . . . 1 . . 1 . 1 . . . . . Haulers Reinforced . | . . . . . . . . . . . . . . . . Active Scanning Responses . | . . . . . . . . . . . . . . . . Cargo Convoy Interrupts . | . . . . . . . . . . . . . . . . Alert ID Control Effect 1 | . . . . . . . . . . . . . . 1 . Stealth | -11 -10 -10 -10 -9 -8 -7 -7 -6 -6 -6 -6 -5 -5 -4 -4 --------- Run | Yrd Mat Min Exi Min Mat Fac DSF Fac Gar Fac Gar Fac Gar Fac Ext Distress Signals 6 | . 1 . . . 3 . . . . . . 2 . . . Communications Jammed 20 | . . . . . . . 12 8 . . . . . . . Distress Signals 8 | . . . . . . . . 8 . . . . . . . Times Spotted 399 | . 4 22 . . 61 . 14 12 39 7 37 14 43 130 16 Peak Tracking Total 18 | . 2 3 . . 6 . 4 5 8 2 9 4 7 18 11 Tactical Retreats 14 | . 1 1 . . 2 . 2 . 1 . . . 1 6 . Traps | -11 -10 -10 -10 -9 -8 -7 -7 -6 -6 -6 -6 -5 -5 -4 -4 ------- Run | Yrd Mat Min Exi Min Mat Fac DSF Fac Gar Fac Gar Fac Gar Fac Ext Traps Triggered 18 | . . . . . 1 . 2 1 4 1 2 2 3 . 2 Indirectly 1 | . . . . . . . . 1 . . . . . . . Trap Hack Attempts . | . . . . . . . . . . . . . . . . Triggered . | . . . . . . . . . . . . . . . . Disarmed . | . . . . . . . . . . . . . . . . Reprogrammed . | . . . . . . . . . . . . . . . . Reused . | . . . . . . . . . . . . . . . . Traps Extracted . | . . . . . . . . . . . . . . . . Installed . | . . . . . . . . . . . . . . . . Triggered . | . . . . . . . . . . . . . . . . Machines | -11 -10 -10 -10 -9 -8 -7 -7 -6 -6 -6 -6 -5 -5 -4 -4 ---------- Run | Yrd Mat Min Exi Min Mat Fac DSF Fac Gar Fac Gar Fac Gar Fac Ext Machines Disabled 58 | . . . . . 10 . . 4 6 . 12 4 4 15 3 Max in Single Turn 4 | . . . . . 2 . . 4 1 . 1 3 1 2 1 Garrison Access 3 | . . . . . 1 . . . . . . . . 2 . Garrison Relay 14 | . . . . . . . . . 6 . 4 . 4 . . Machines Repaired . | . . . . . . . . . . . . . . . . Machines Dismantled 2 | . . . . . . . . . . . . . . . 2 Machines Sabotaged . | . . . . . . . . . . . . . . . . Overloaded Fab Kills . | . . . . . . . . . . . . . . . . Hacking | -11 -10 -10 -10 -9 -8 -7 -7 -6 -6 -6 -6 -5 -5 -4 -4 --------- Run | Yrd Mat Min Exi Min Mat Fac DSF Fac Gar Fac Gar Fac Gar Fac Ext Machines Accessed 35 | . 1 . 2 1 7 3 . 5 2 1 1 3 2 1 6 Terminals 20 | . 1 . . . 5 1 . 2 2 . 1 . 2 . 6 Fabricators 3 | . . . . . . 1 . . . . . 2 . . . Repair Stations 3 | . . . . . 1 1 . . . . . . . 1 . Recycling Units 1 | . . . . . . . . 1 . . . . . . . Scanalyzers 1 | . . . . . . . . 1 . . . . . . . Garrison Access 4 | . . . . . 1 . . 1 . 1 . 1 . . . Total Hacks 95 | . 1 . 24 1 22 6 . 11 6 1 2 4 4 3 10 Successful 58 | . 1 . 24 1 13 4 . 4 2 1 1 2 . 1 4 Failed 37 | . . . . . 9 2 . 7 4 . 1 2 4 2 6 Catastrophic 6 | . . . . . . . . 1 1 . . 1 . . 3 Database Lockouts . | . . . . . . . . . . . . . . . . Manual 23 | . 1 . 1 . 16 . . 4 1 . . . . . . Terminals 42 | . 1 . . . 14 1 . 4 6 . 2 . 4 . 10 Fabricators 5 | . . . . . . 2 . . . . . 3 . . . Repair Stations 11 | . . . . . 5 3 . . . . . . . 3 . Recycling Units 3 | . . . . . . . . 3 . . . . . . . Scanalyzers 3 | . . . . . . . . 3 . . . . . . . Garrison Access 6 | . . . . . 3 . . 1 . 1 . 1 . . . Terminal Hacks 34 | . . . 24 1 . 1 . 1 2 . 1 . . . 4 Record 23 | . . . 23 . . . . . . . . . . . . Open Door 6 | . . . . 1 . . . . 1 . . . . . 4 Open DSF 1 | . . . . . . 1 . . . . . . . . . Branch Access Points 1 | . . . . . . . . 1 . . . . . . . Emergency Access Points 2 | . . . . . . . . . 1 . 1 . . . . Proto ID Catalog 1 | . . . 1 . . . . . . . . . . . . Fabricator Hacks 2 | . . . . . . 1 . . . . . 1 . . . Network Status 2 | . . . . . . 1 . . . . . 1 . . . Repair Station Hacks 5 | . . . . . 2 2 . . . . . . . 1 . Scan Component 3 | . . . . . 1 1 . . . . . . . 1 . Repair 2 | . . . . . 1 1 . . . . . . . . . Recycling Unit Hacks . | . . . . . . . . . . . . . . . . Scanalyzer . | . . . . . . . . . . . . . . . . Garrison Access Hacks 4 | . . . . . 1 . . 1 . 1 . 1 . . . Unlock Access 4 | . . . . . 1 . . 1 . 1 . 1 . . . Unauthorized Hacks 12 | . 1 . . . 10 . . 1 . . . . . . . Terminals 11 | . 1 . . . 9 . . 1 . . . . . . . Assimilate 1 | . . . . . 1 . . . . . . . . . . Botnet 5 | . . . . . 4 . . 1 . . . . . . . Skim 5 | . 1 . . . 4 . . . . . . . . . . Fabricators . | . . . . . . . . . . . . . . . . Repair Stations 1 | . . . . . 1 . . . . . . . . . . Patch 1 | . . . . . 1 . . . . . . . . . . Recycling Units . | . . . . . . . . . . . . . . . . Scanalyzers . | . . . . . . . . . . . . . . . . Garrison Access . | . . . . . . . . . . . . . . . . Data Cores Recovered . | . . . . . . . . . . . . . . . . Used . | . . . . . . . . . . . . . . . . Hacking Detections 22 | . 1 . . . 4 1 . 5 2 1 1 2 2 1 2 Full Trace Events 6 | . . . . . . . . 1 1 . . 1 1 1 1 Feedback Events . | . . . . . . . . . . . . . . . . Feedback Blocked . | . . . . . . . . . . . . . . . . Robot Schematics Acquired . | . . . . . . . . . . . . . . . . Robots Built . | . . . . . . . . . . . . . . . . Authchips . | . . . . . . . . . . . . . . . . Time . | . . . . . . . . . . . . . . . . Total Robot Build Rating . | . . . . . . . . . . . . . . . . Part Schematics Acquired . | . . . . . . . . . . . . . . . . Parts Built . | . . . . . . . . . . . . . . . . Authchips . | . . . . . . . . . . . . . . . . Time . | . . . . . . . . . . . . . . . . Total Part Build Rating . | . . . . . . . . . . . . . . . . Part Studies Acquired . | . . . . . . . . . . . . . . . . Parts Repaired 2 | . . . . . 1 1 . . . . . . . . . Time 63 | . . . . . 19 44 . . . . . . . . . Parts Recycled . | . . . . . . . . . . . . . . . . Recycled Matter . | . . . . . . . . . . . . . . . . Retrieved Matter . | . . . . . . . . . . . . . . . . Retrieved Components . | . . . . . . . . . . . . . . . . Parts Scanalyzed . | . . . . . . . . . . . . . . . . Part Schematics Acquired . | . . . . . . . . . . . . . . . . Parts Damaged . | . . . . . . . . . . . . . . . . Bothacking | -11 -10 -10 -10 -9 -8 -7 -7 -6 -6 -6 -6 -5 -5 -4 -4 ------------ Run | Yrd Mat Min Exi Min Mat Fac DSF Fac Gar Fac Gar Fac Gar Fac Ext Used RIF Installer 5 | . . . . . . . . . 1 . 2 . 2 . . Command Fork 1 | . . . . . . . . . . . 1 . . . . Alert ID Control 1 | . . . . . . . . . . . . . 1 . . Structural Interface 1 | . . . . . . . . . . . 1 . . . . Autooverride 1 | . . . . . . . . . . . . . 1 . . Robots Hacked 6 | . . . . . . . . . . . 1 . . 5 . Non-combat 1 | . . . . . . . . . . . . . . 1 . Combat 5 | . . . . . . . . . . . 1 . . 4 . Autooverrided 1 | . . . . . . . . . . . . . . 1 . Robot Hacks Applied 6 | . . . . . . . . . . . 1 . . 5 . amplify_resonance 1 | . . . . . . . . . . . 1 . . . . disable_weapons 1 | . . . . . . . . . . . . . . 1 . formatsys_low 2 | . . . . . . . . . . . . . . 2 . formatsys_high 2 | . . . . . . . . . . . . . . 2 . Relay Couplers Released 62 | . . . . . 2 . . . 27 . 14 . 16 3 . Machine Destruction 62 | . . . . . 2 . . . 27 . 14 . 16 3 . Attached 4 | . . . . . . . . . . . 2 . . 2 . Fabnet Peak Effective % . | . . . . . . . . . . . . . . . . Robots Rewired 10 | . . . . . . . . . 4 . 2 . 4 . . Allies Hacked . | . . . . . . . . . . . . . . . . Hacks Repelled . | . . . . . . . . . . . . . . . . Allies | -11 -10 -10 -10 -9 -8 -7 -7 -6 -6 -6 -6 -5 -5 -4 -4 -------- Run | Yrd Mat Min Exi Min Mat Fac DSF Fac Gar Fac Gar Fac Gar Fac Ext Total Allies 25 | . . . . . . . . . 4 . 4 . 6 4 7 Largest Group 6 | . . . . . . . . . 4 . 2 2 6 6 6 Highest-Rated Group 446 | . . . . . . . . . 177 . 238 160 446 446 243 Highest-Rated Ally 159 | . . . . . . . . . 51 . 119 80 119 119 159 Initial Warlord ECA Mod 9 | . . . . . . . . 9 9 . . . . . . Total Orders 34 | . . . . 16 . . . . . . . . 12 6 . STAY 10 | . . . . . . . . . . . . . 6 4 . FOLLOW 6 | . . . . . . . . . . . . . 6 . . AID 2 | . . . . . . . . . . . . . . 2 . EXPLORE 5 | . . . . 5 . . . . . . . . . . . RETURN 11 | . . . . 11 . . . . . . . . . . . Ally Attacks 270 | . . . . . . . . . 28 . 40 14 14 134 40 Total Damage 10133 | . . . . . . . . . 833 . 1916 598 556 4776 1454 Kills 69 | . . . . . . . . . 7 . 18 3 5 32 4 Allies Corrupted . | . . . . . . . . . . . . . . . . Allies Melted . | . . . . . . . . . . . . . . . . Intel | -11 -10 -10 -10 -9 -8 -7 -7 -6 -6 -6 -6 -5 -5 -4 -4 ------- Run | Yrd Mat Min Exi Min Mat Fac DSF Fac Gar Fac Gar Fac Gar Fac Ext Active Infowar (turns) 6302 | 27 133 361 . . 419 330 130 603 270 . 1380 506 1638 505 . Optics 4029 | . . . . . . . . . . . 1380 506 1638 505 . IFF 28 | . . . . . . . . 28 . . . . . . . Traps 1333 | . . . . . 419 330 60 524 . . . . . . . Seismic 521 | 27 133 361 . . . . . . . . . . . . . Jamming 602 | . . . . . . . 70 51 270 . . . . 211 . Robot Analysis Total . | . . . . . . . . . . . . . . . . Derelict Logs Recovered 2 | . . 1 . 1 . . . . . . . . . . . Drone Launches 11 | . . . . 11 . . . . . . . . . . . Drone Recoveries 11 | . . . . 11 . . . . . . . . . . . Exploration | -11 -10 -10 -10 -9 -8 -7 -7 -6 -6 -6 -6 -5 -5 -4 -4 ------------- Run | Yrd Mat Min Exi Min Mat Fac DSF Fac Gar Fac Gar Fac Gar Fac Ext Turns Passed 13122 | 111 133 949 689 272 1807 330 441 606 2174 279 2043 506 1638 859 285 Spaces Moved 7788 | 60 54 543 672 252 1120 235 190 342 1275 134 1011 260 807 485 348 Core 245 | 22 . . . . . . . . . . . . . 154 69 Treads 2961 | 38 54 47 . . . . . . 390 134 1011 260 807 220 . Legs 3351 | . . 143 103 252 1120 235 190 342 885 . . . . 81 . Wheels 922 | . . 353 569 . . . . . . . . . . . . Hover . | . . . . . . . . . . . . . . . . Flight 309 | . . . . . . . . . . . . . . 30 279 Fastest Speed 40 | 50 160 95 90 90 90 110 112 112 112 165 161 162 161 40 40 Average Speed 126 | 119 160 119 101 90 95 111 129 146 130 165 163 163 168 114 42 Slowest Speed 270 | 160 160 190 260 90 110 112 183 184 190 165 175 165 250 270 120 Overloaded Moves . | . . . . . . . . . . . . . . . . Propulsion Burnouts . | . . . . . . . . . . . . . . . . Robots Hopped 7 | . . . . . . . . . . . . . . 4 3 Potential Cave-ins . | . . . . . . . . . . . . . . . . Cave-ins Triggered . | . . . . . . . . . . . . . . . . Exploration Rate (%) 47 | 5 13 69 92 44 67 7 93 12 92 5 96 11 97 14 47 Regions Visited 15 Branch Regions 4 Pre-discovered Areas 3 | . . 1 1 1 . . . . . . . . . . . Known Exits Taken 4 | . . . . . . 1 . 1 . 1 . 1 . . . Unknown Exits Taken 7 | 1 1 1 1 1 1 . . . . . . . . 1 . Scrap Searched 1 | . . . . 1 . . . . . . . . . . . Spaces Dug 135 | . . . . . 132 . . . . . 1 2 . . . Terrain Destroyed 1148 | . . 102 . . 682 . . 4 8 12 6 3 44 287 . Melee 2 | . . . . . 2 . . . . . . . . . . Projectile 66 | . . . . . 29 . . 4 8 12 6 3 1 3 . AOE 1080 | . . 102 . . 651 . . . . . . . 43 284 . Terrain Rammed . | . . . . . . . . . . . . . . . . Walls Destroyed . | . . . . . . . . . . . . . . . . Machines Disabled . | . . . . . . . . . . . . . . . . Actions | -11 -10 -10 -10 -9 -8 -7 -7 -6 -6 -6 -6 -5 -5 -4 -4 --------- Run | Yrd Mat Min Exi Min Mat Fac DSF Fac Gar Fac Gar Fac Gar Fac Ext Total 10032 | 85 80 760 682 296 1538 297 303 414 1600 167 1323 298 978 743 468 Wait 941 | . 15 151 . 37 178 44 41 14 63 4 165 6 17 133 73 Move 7763 | 59 53 542 671 251 1119 234 189 341 1274 133 1010 260 806 479 342 Hop 4 | . . . . . . . . . . . . . . 1 3 Pick Up 172 | 12 1 10 5 3 32 6 12 11 31 2 20 3 11 12 1 Fast Attach 49 | . . . . 1 11 2 2 1 3 4 10 1 9 5 . Attach 99 | 7 . 6 2 . 21 2 3 3 12 2 8 2 7 17 7 Detach 13 | . . . 1 . 3 . . . . . . . . 1 8 Swap 105 | . . 8 1 2 15 . 6 11 19 1 10 6 16 10 . Drop 143 | . . 1 2 2 26 6 12 15 31 6 23 1 14 3 1 Fire 587 | 7 10 42 . . 131 3 38 17 117 13 52 18 61 76 2 Melee 13 | . . . . . 2 . . . . . 2 . 3 6 . Ram . | . . . . . . . . . . . . . . . . Kick . | . . . . . . . . . . . . . . . . Crush 5 | . 1 . . . . . . . . 2 1 1 . . . Escape Stasis 20 | . . . . . . . . . 5 . . . . . 15 Rewire 102 | . . . . . . . . 1 45 . 22 . 34 . . Trap . | . . . . . . . . . . . . . . . . Miscellaneous 16 | . . . . . . . . . . . . . . . 16 Route ------- -11/Scrapyard -10/Materials -10/Mines (discovered 4 exits: *Mat x2 / *Exi / [*Sub]) -10/Exiles (discovered 2 exits: *Min x2) -9/Mines -8/Materials (discovered 3 exits: *Fac x3) -7/Factory -7/DSF -6/Factory (discovered 3 exits: Low x2 / Gar) -6/Garrison (discovered 3 exits: *Fac x3) -6/Factory -6/Garrison (discovered 3 exits: *Fac x3) -5/Factory -5/Garrison (discovered 3 exits: *Fac x3) -4/Factory -4/Extension History --------- Turn | Location | Event 4 | -11/Scrapyard | Discovered new exit (range 14) 112 | -11/Scrapyard | Entered Materials 187 | -10/Materials | Discovered new exit (range 8) 245 | -10/Materials | Entered Mines 261 | -10/Mines | Assembled infested the area 303 | -10/Mines | Build established: Mutant 650 | -10/Mines | Core integrity fell below 50% 668 | -10/Mines | Lost 5 parts (1p2n1u1w) 788 | -10/Mines | Identified exit to Materials 1064 | -10/Mines | Learned location of Storage (-8) 1065 | -10/Mines | Discovered new exit (range 9) 1121 | -10/Mines | Discovered exit to Materials (range 7) 1129 | -10/Mines | Received a Rocket Launcher from a helpful Derelict 1138 | -10/Mines | Deemed a non-threat by the Exiles lab entrance 1138 | -10/Mines | Discovered new exit (range 5) 1166 | -10/Mines | Core integrity fell below 20% 1194 | -10/Mines | Entered Exiles 1210 | -10/Exiles | Discovered new exit (range 14) 1235 | -10/Exiles | Met 8R-AWN 1252 | -10/Exiles | Met EX-HEX 1289 | -10/Exiles | Met EX-DEC 1345 | -10/Exiles | Visited The Gauntlet 1488 | -10/Exiles | Met EX-BIN 1622 | -10/Exiles | Discovered new exit (range 14) 1715 | -10/Exiles | Learned location of Zion (-6) 1751 | -10/Exiles | Aligned with FarCom system 1752 | -10/Exiles | Given EX-Vault access code 1777 | -10/Exiles | Opened EX-Vault 1787 | -10/Exiles | Found Potential Leg 1789 | -10/Exiles | Found Potential Leg 1792 | -10/Exiles | Found Longsword +1 1796 | -10/Exiles | Found YOLO Cannon 1815 | -10/Exiles | Warned to stay clear of 0b10 Research branches 1883 | -10/Exiles | Stole three prototypes: Potential Leg, YOLO Cannon, Longsword +1 1883 | -10/Exiles | Entered Mines 1898 | -9/Mines | YI-UF0 nonchalantly dropped a Grenade Launcher on the ground 1951 | -9/Mines | Found the Drone Emporium 1957 | -9/Mines | Found Prototype Device 1958 | -9/Mines | Identified Sensor Drone Bay 2117 | -9/Mines | A weapon hastily lodged in a ceiling crevice suddenly fell to the ground 2128 | -9/Mines | Discovered new exit (range 12) 2155 | -9/Mines | Entered Materials 2155 | -8/Materials | Evolved 4 slots: Propulsion x1, Utility x2, Weapon x1 2198 | -8/Materials | Garrison activated, responded to threat 2344 | -8/Materials | Identified exit to Garrison 2396 | -8/Materials | Discovered new exit (range 16) 2528 | -8/Materials | Destroyed 11 combat bots 2603 | -8/Materials | Repaired Imp. Light Armor Plating 2903 | -8/Materials | Discovered new exit (range 5) 2905 | -8/Materials | Build established: Tank 2955 | -8/Materials | First assault squad dispatched 3385 | -8/Materials | YOLO Cannon suddenly exploded 3386 | -8/Materials | Core integrity fell below 50% 3416 | -8/Materials | Lost 5 parts (1p1n2u1w) 3730 | -8/Materials | Discovered new exit (range 8) 3916 | -8/Materials | Sterilization system engaged 3916 | -8/Materials | Non-combat units ordered to evacuate 3962 | -8/Materials | Entered Factory 3962 | -7/Factory | Evolved 2 slots: Propulsion x1, Utility x1 3964 | -7/Factory | FarCom data flow suspended 4269 | -7/Factory | Repaired Gauss Rifle 4291 | -7/Factory | Identified exit to DSF 4292 | -7/Factory | Entered DSF 4316 | -7/DSF | Additional patrols routed to DSF 4650 | -7/DSF | Discovered new exit (range 15) 4697 | -7/DSF | Sterilization system engaged 4717 | -7/DSF | Ambient heat levels rising (+10) 4732 | -7/DSF | Ambient heat levels rising (+10) 4733 | -7/DSF | Entered Factory 4733 | -6/Factory | Evolved 2 slots: Propulsion x1, Utility x1 4826 | -6/Factory | Build established: Scavenger-Gunner 4939 | -6/Factory | Identified exit to Lower Caves 5215 | -6/Factory | Identified exit to Garrison 5254 | -6/Factory | Garrison activated, responded to threat 5324 | -6/Factory | Destroyed 7 combat bots 5339 | -6/Factory | Entered Garrison 5393 | -6/Garrison | Triggered checkpoint 5424 | -6/Garrison | Garrison Relay disabled 5425 | -6/Garrison | Triggered checkpoint 5500 | -6/Garrison | Garrison Relay disabled 5565 | -6/Garrison | Triggered checkpoint 5630 | -6/Garrison | Build established: Gunner 5657 | -6/Garrison | Destroyed 8 combat bots 5689 | -6/Garrison | Discovered new exit (range 9) 5703 | -6/Garrison | Triggered checkpoint 5722 | -6/Garrison | Garrison Relay disabled 5786 | -6/Garrison | Triggered checkpoint 5838 | -6/Garrison | Destroyed 8 combat bots 5977 | -6/Garrison | Discovered new exit (range 13) 6070 | -6/Garrison | Destroyed 7 combat bots 6153 | -6/Garrison | Triggered checkpoint 6189 | -6/Garrison | Garrison Relay disabled 6278 | -6/Garrison | Lost 4 allies 6359 | -6/Garrison | Build established: Scavenger-Gunner 6550 | -6/Garrison | Garrison Relay disabled 6574 | -6/Garrison | Spotted B-75 Beast 6583 | -6/Garrison | Discovered new exit (range 13) 6802 | -6/Garrison | Destroyed B-75 Beast 6872 | -6/Garrison | Found Fusion Bomb Launcher 7069 | -6/Garrison | Triggered checkpoint 7112 | -6/Garrison | Installed Relay Interface Framework 7126 | -6/Garrison | Garrison Relay disabled 7127 | -6/Garrison | Build established: Scavenger-Tank 7513 | -6/Garrison | Entered Factory 7721 | -6/Factory | Build established: Tank 7787 | -6/Factory | Identified exit to Garrison 7792 | -6/Factory | Entered Garrison 7860 | -6/Garrison | Triggered checkpoint 7887 | -6/Garrison | Garrison Relay disabled 7888 | -6/Garrison | Garrison Relay disabled 8031 | -6/Garrison | Garrison Relay disabled 8101 | -6/Garrison | Build established: Gunner 8104 | -6/Garrison | Rewired Executioner 8125 | -6/Garrison | Rewired Executioner 8206 | -6/Garrison | Triggered checkpoint 8222 | -6/Garrison | Triggered checkpoint 8266 | -6/Garrison | Triggered checkpoint 8310 | -6/Garrison | Triggered checkpoint 8401 | -6/Garrison | Triggered checkpoint 8421 | -6/Garrison | Garrison Relay disabled 8441 | -6/Garrison | Allies destroyed Executioner 8484 | -6/Garrison | Expanded RIF knowledge: Structural Interface 8501 | -6/Garrison | Discovered new exit (range 8) 8836 | -6/Garrison | Discovered new exit (range 5) 8870 | -6/Garrison | Expanded RIF knowledge: Command Fork 8912 | -6/Garrison | Triggered checkpoint 9042 | -6/Garrison | Found Launcher Loader 9152 | -6/Garrison | Build established: Scavenger-Tank 9210 | -6/Garrison | Triggered checkpoint 9242 | -6/Garrison | Found embedded Infiltrators 9248 | -6/Garrison | Discovered new exit (range 11) 9835 | -6/Garrison | Entered Factory 9835 | -5/Factory | Accompanied by 2 allies 9835 | -5/Factory | Evolved 2 slots: Power x1, Utility x1 10135 | -5/Factory | First assault squad dispatched 10142 | -5/Factory | Spotted B-75 Beast 10146 | -5/Factory | Build established: Tank 10181 | -5/Factory | Destroyed B-75 Beast 10341 | -5/Factory | Identified exit to Garrison 10341 | -5/Factory | Entered Garrison 10393 | -5/Garrison | Triggered checkpoint 10395 | -5/Garrison | Garrison Relay disabled 10713 | -5/Garrison | Triggered checkpoint 10818 | -5/Garrison | Discovered new exit (range 15) 11003 | -5/Garrison | Rewired Executioner 11013 | -5/Garrison | Build established: Scavenger-Gunner 11022 | -5/Garrison | Rewired Executioner 11116 | -5/Garrison | Expanded RIF knowledge: Alert ID Control 11208 | -5/Garrison | Expanded RIF knowledge: Autooverride 11286 | -5/Garrison | Garrison Relay disabled 11293 | -5/Garrison | Garrison Relay disabled 11519 | -5/Garrison | Discovered new exit (range 11) 11575 | -5/Garrison | Found embedded Infiltrators 11593 | -5/Garrison | Triggered checkpoint 11832 | -5/Garrison | Garrison Relay disabled 11923 | -5/Garrison | Discovered new exit (range 17) 11979 | -5/Garrison | Entered Factory 11979 | -4/Factory | Accompanied by 6 allies 11979 | -4/Factory | Evolved 2 slots: Utility x1, Weapon x1 12054 | -4/Factory | High security lockdown imminent 12134 | -4/Factory | High security lockdown engaged 12253 | -4/Factory | Destroyed 8 combat bots 12497 | -4/Factory | P-70 Sage assimilated allied 4X-NLD(x) 12533 | -4/Factory | Lost 4 allies 12539 | -4/Factory | Destroyed 19 combat bots 12543 | -4/Factory | P-70 Sage assimilated allied Artificer 7a 12546 | -4/Factory | System corruption reached 10% 12600 | -4/Factory | Destroyed 13 combat bots 12679 | -4/Factory | Lost 18 parts (2p4n6u6w) 12738 | -4/Factory | Released all parts (5) 12815 | -4/Factory | Discovered new exit (range 13) 12833 | -4/Factory | Spotted B-86 Titan 12838 | -4/Factory | Entered Extension 12852 | -4/Extension | Rescued a captive Derelict 12855 | -4/Extension | Rescued a captive Derelict 12860 | -4/Extension | Rescued a captive Derelict 12861 | -4/Extension | Rescued a captive Derelict 12862 | -4/Extension | Rescued a captive Derelict 12903 | -4/Extension | Rescued a captive Derelict 12925 | -4/Extension | Build established: Mutant 12982 | -4/Extension | Rescued a captive Derelict 13046 | -4/Extension | High security lockdown imminent 13073 | -4/Extension | Rescued A7 13079 | -4/Extension | Core integrity fell below 50% 13082 | -4/Extension | Spotted B-86 Titan 13084 | -4/Extension | Spotted B-86 Titan 13091 | -4/Extension | Core integrity fell below 20% 13110 | -4/Extension | Lost 6 allies 13123 | -4/Extension | Destroyed by Y-64 Sentinel with Wave Gun Last Messages --------------- Dropped Med. Storage Unit. Penetrated by Slug. Slug penetrates Wall. Knocked back. Slug penetrates Wall. Slug penetrates Machine. ALERT: Machine network offline. System corrupted: Heat flow error (+146). ALERT: Performing unscheduled system reset. System corrupted: Energy discharge (-35). U-05 Engineer destroyed. Slug penetrates Wall. Slug penetrates A7. Y-64 Sentinel destroyed. Slug penetrates A7. A7: "I've done al##MISSION::FAILED##" A7 destroyed. P-70 Sage resets Y-64 Sentinel, system corruption cleaned. Penetrated by Slug. Map ----- +----------------------------------------------------+ | # #|#???????????????????????????????????????????? | | ####=#???????????????????????????????????????????? | | ???# #???????????????????????????????????????????? | | ???# #???????????????????????????????????????????? | | ???# #???????????????????????????????????????????? | | ???# #???????????????????????????????????????????? | | ???# #???????????????????????????????????????????? | | ???# #????????? ?????????????????????????????????? | | ##?# #????????? ?????????????????????????????????? | | # #????????? ????????????????????????????????? | | % # #????????? ????????????????????????????????? | | = + #????????# ????????????????????????????????? | | # #????????# ????????????????????????????????? | | #%#????????# #????????????????????????????????? | | ##?# #????????# #????????????????????????????????? | | ???# #????????# #????????????????????????????????? | | ???# #?######?# #????????????????????????????????? | | ?### ### "# ### ###??????????????????????????????? | | ?#"" "" % "" ""#??????????????????????????????? | | ?# " !] " " #??????????????????????????????? | | ?# [= ##?????????????????????????????? | | ?# Yp # #??##########????????????????? | | ?# pY% ##|###;;;#;##;################## | | =% =%! $ | | [ ! % % | | % @ % | | % u% p | | R %% | | ## BB ;############################### | | ?# BB #??????????????????????????????? | | ?# #??????????????????????????????? | | ?# #??????????????????????????????? | | ?# #??????????????????????????????? | | ?######T#"""#######??????????????????????????????? | | ???????#?????????????????????????????????????????? | | ?????????????????????????????????????????????????? | | | | | | | | | | | | | | | | | | | | | | | | | | | | | +----------------------------------------------------+ Best States ------------- Heat Dissipation 82 Energy Generation 39 Energy Capacity 980 Matter Stores 300 Matter Capacity 300 Sight Range 23 Terrain Scan Density 10 Jamming Range 12 Armor Coverage 600 Weapon Cycling 20 Evasion (%) 62 Target Analysis 8 Core Analysis 6 Recoil Reduction 5 Relay Coupler Types 2 Relay Coupler Value 38 Item Schematics ----------------- None Robot Schematics ------------------ None Fabricated ------------ Nothing Repaired ---------- Imp. Light Armor Plating | 3% | -8/Materials Gauss Rifle | 73% | -7/Factory Studied --------- None Alien Tech Used ----------------- None Achievements -------------- YOLO Challenges ------------ None Game ------ Seed FissionWeaponsWall Manual? 0 Play Time 02:31:09 Cumulative 437.3 hours Start 2026.06.23 @ 14:30:47 End 2026.06.23 @ 17:03:37 Sessions 1 Manual Loads 0 Difficulty Rogue Special Mode None Game No. 278 Rogue 278 Adventurer 0 Explorer 0 Win Type - Total 31 Types 15/1/7/2/1/1/1/1/0/2 Lore% 95 Gallery% 89 Achievement% 79 Wizard Run 0 Options --------- Layout 1 ASCII 0 Keyboard 0 Movement Numpad Keybinds 0 Fullscreen 1 Font 24/Proggy Map View 50x35 Zoom Use 0% Tactical HUD 0 Map Filters NONE Filters NONE Steam 1 RUN: 976f2bf1-4ce9-45b8-b8c2-b973378cbf26